bitfinex/quotes_ETHUSD_20240816
["timestamp","ask_amount","ask_price","bid_price","bid_amount"]
[1723799803030,2.2586,2626.6,2625.6,10.405365]
[1723799803236,6.95678,2626.9,2625.6,10.405365]
[1723799803439,2.3284,2627.0,2625.6,27.73374073]
[1723799803961,0.00408777,2625.7,2625.6,66.54239073]
[1723799804158,0.00408777,2625.7,2625.6,62.73374073]
[1723799804159,0.00013148,2625.7,2625.6,62.73374073]
[1723799804836,0.00013148,2625.7,2625.6,66.54239073]
[1723799805660,0.00013148,2625.7,2625.6,69.69239073]
[1723799806864,0.00013148,2625.7,2625.6,73.50104073]
[1723799807071,5.6222,2627.7,2626.9,3.80676]
[1723799807226,3.80451,2628.5,2627.6,3.80572]
[1723799807431,2.4722,2628.6,2627.4,2.3836]
[1723799807667,0.06631442,2629.0,2628.2,7.60976]
[1723799807965,3.80338,2629.3,2628.2,7.60976]
[1723799808260,2.4722,2629.6,2628.2,7.60976]
[1723799808261,3.80374,2629.0,2628.2,7.60976]
[1723799808463,6.27511,2629.6,2628.2,7.60976]
[1723799808760,3.80383,2629.0,2628.2,7.60976]
[1723799809062,2.4722,2628.8,2628.0,3.80507]
[1723799809392,3.80471,2628.4,2627.7,3.80552]
[1723799809534,2.4722,2628.2,2627.6,5.19609187]
[1723799809849,6.27712,2628.2,2627.6,5.19609187]
[1723799810256,6.27712,2628.2,2627.4,3.80597]
[1723799810257,2.4722,2628.2,2627.4,3.80597]
[1723799810429,2.4722,2628.2,2627.6,3.80575]
[1723799810655,2.4722,2628.2,2627.4,7.61192]
[1723799810946,2.4657,2627.6,2626.8,3.80685]
[1723799811332,2.4657,2627.6,2626.8,3.80681]
[1723799811553,2.4657,2627.6,2627.0,3.80658]
[1723799811864,3.80608,2627.4,2626.8,3.80681]
[1723799812069,2.4657,2627.6,2626.6,0.380728]
[1723799812273,2.4657,2627.6,2627.2,3.80622]
[1723799812867,3.80524,2628.0,2627.3,3.80618]
[1723799813184,2.4348,2628.0,2627.4,3.80594]
[1723799813399,2.4348,2628.0,2627.4,7.61189]
[1723799813558,6.23998,2628.0,2627.4,3.80594]
[1723799813931,6.23998,2628.0,2627.4,7.6119]
[1723799814179,2.4348,2628.0,2627.5,3.80588]
[1723799814672,2.4348,2628.0,2627.4,3.80594]
[1723799814673,6.24,2628.0,2627.4,3.80594]
[1723799814886,3.475976,2628.0,2627.2,7.44]
[1723799815032,3.80555,2627.8,2627.2,7.44]
[1723799815248,4.5337026,2627.8,2627.2,7.44]
[1723799815467,3.80585,2627.6,2627.2,7.44]
[1723799815836,3.80605,2627.4,2627.2,7.44]
[1723799816033,6.30054,2627.3,2626.7,13.51972573]
[1723799816233,10.10682,2627.3,2626.7,13.51972573]
[1723799816462,6.30054,2627.3,2626.7,13.51972573]
[1723799816862,3.80642,2627.2,2626.7,13.51972573]
[1723799817475,2.4943,2627.3,2626.9,3.80663]
[1723799818179,2.4943,2627.3,2626.7,19.8033853]
[1723799818180,3.80605,2627.4,2626.7,23.6103353]
[1723799818351,7.97799,2627.5,2626.8,0.73835531]
[1723799818555,4.172,2627.5,2626.8,4.54515531]
[1723799818759,2.3487,2627.6,2626.9,2.1871811]
[1723799818953,3.8059,2627.5,2626.9,2.1871811]
[1723799819183,2.3487,2627.6,2627.0,7.61315]
[1723799819337,2.3487,2627.6,2627.0,3.80654]
[1723799819539,2.2733,2628.0,2627.0,14.49978184]
[1723799819887,2.2733,2628.0,2627.3,7.61218]
[1723799819888,3.80517,2628.0,2627.3,7.61218]
[1723799820067,3.80517,2628.0,2627.4,3.80601]
[1723799820244,3.80517,2628.0,2627.4,2.23497877]
[1723799820575,6.2088168,2628.3,2627.6,3.80564]
[1723799820877,2.48016467,2628.3,2627.4,7.44]
[1723799821063,3.80558,2627.8,2627.4,7.44]
[1723799821263,4.172,2628.0,2627.5,3.80587]
[1723799821476,7.60991,2628.2,2627.6,4.930257]
[1723799821477,3.8049,2628.2,2627.6,4.930257]
[1723799821875,0.07615787,2628.2,2627.1,13.51972573]
[1723799822201,2.4040068,2628.3,2627.0,2.4701]
[1723799822202,3.80546,2627.9,2627.2,3.80629]
[1723799822368,3.80568,2627.7,2627.0,10.08312]
[1723799822561,6.12138,2627.7,2627.0,3.80648]
[1723799822797,3.80628,2627.3,2626.7,3.80705]
[1723799823096,3.80628,2627.3,2626.8,3.80685]
[1723799823296,3.80597,2627.5,2626.9,3.80673]
[1723799823503,4.172,2627.6,2627.0,3.80649]
[1723799824076,3.80585,2627.6,2626.8,2.4851]
[1723799824276,3.80601,2627.5,2626.9,3.80669]
[1723799824476,3.80605,2627.4,2626.9,3.80669]
[1723799824676,3.80605,2627.4,2626.7,3.80697]
[1723799824876,3.80605,2627.4,2626.7,7.61394]
[1723799824877,8.65971079,2627.4,2626.7,7.61394]
[1723799825079,4.85353079,2627.4,2626.8,3.8069]
[1723799825298,4.85353079,2627.4,2626.7,3.80697]
[1723799825601,10.39842,2627.6,2626.9,3.80668]
[1723799825602,3.80591,2627.5,2626.9,3.80668]
[1723799825907,6.5926,2627.6,2626.7,4.187617]
[1723799826101,6.5926,2627.6,2626.4,2.2716]
[1723799826102,3.80642,2627.2,2626.6,3.80717]
[1723799826399,3.80642,2627.2,2626.5,3.80731]
[1723799826400,3.80641,2627.2,2626.5,7.61448]
[1723799826702,3.88263787,2627.1,2626.5,3.80722]
[1723799826906,3.80678,2626.9,2626.3,3.80754]
[1723799827070,3.80678,2626.9,2626.1,7.44]
[1723799827071,3.80697,2626.8,2626.1,7.44]
[1723799827265,3.80729,2626.6,2626.1,7.44]
[1723799827489,3.807,2626.8,2626.3,3.80761]
[1723799827667,3.80713,2626.7,2626.1,11.24779]
[1723799827893,3.80723,2626.6,2626.1,7.44]
[1723799828084,3.88363787,2626.5,2626.1,7.44]
[1723799828368,3.88363787,2626.5,2625.9,3.80812]
[1723799828589,3.80748,2626.5,2625.9,3.80812]
[1723799829307,3.807,2626.8,2625.8,20.95972573]
[1723799829469,3.80706,2626.7,2626.1,3.80784]
[1723799829803,3.80679,2626.9,2626.2,3.80777]
[1723799830005,3.80714,2626.7,2626.0,3.80793]
[1723799830221,3.80685,2626.9,2626.2,3.80765]
[1723799830509,7.61373,2626.9,2626.3,3.80756]
[1723799830827,3.80735,2626.5,2625.8,20.95972573]
[1723799830969,7.61453,2626.6,2625.9,3.80809]
[1723799831175,3.80721,2626.6,2626.0,3.80806]
[1723799831422,3.807,2626.8,2626.2,3.80769]
[1723799831635,2.3861,2627.0,2626.5,3.80725]
[1723799831790,3.80647,2627.1,2626.4,3.80735]
[1723799832103,3.80647,2627.1,2626.6,3.80719]
[1723799832290,3.80671,2627.0,2626.5,13.51972573]
[1723799832480,1.178474,2627.1,2626.5,13.51972573]
[1723799832678,4.172,2627.3,2626.5,13.51972573]
[1723799832927,3.80651,2627.1,2626.6,3.80712]
[1723799833092,3.80645,2627.2,2626.6,3.80712]
[1723799833428,3.80669,2627.0,2626.5,13.51972573]
[1723799833711,3.80644,2627.2,2626.5,13.51972573]
[1723799833872,4.172,2627.3,2626.5,13.51972573]
[1723799834074,7.97826,2627.3,2626.8,3.80689]
[1723799834413,7.97826,2627.3,2626.6,5.15909257]
[1723799834414,3.80641,2627.2,2626.6,5.15903257]
[1723799834870,3.80641,2627.2,2626.6,8.96615257]
[1723799835204,4.172,2627.3,2626.7,15.38278804]
[1723799835394,3.80649,2627.1,2626.7,13.51972573]
[1723799835809,3.80665,2627.0,2626.7,13.51972573]
[1723799836288,4.172,2627.3,2626.7,17.32667573]
[1723799836607,3.80603,2627.5,2626.8,3.8069]
[1723799836828,3.80623,2627.3,2626.7,13.51972573]
[1723799836974,3.80664,2627.0,2626.7,13.51972573]
[1723799837320,7.61382,2626.8,2626.7,13.51972573]
[1723799839409,13.74698787,2626.8,2626.7,13.51972573]
[1723799839621,3.80765,2626.3,2625.9,13.51972573]
[1723799839776,3.80745,2626.5,2625.9,17.32780573]
[1723799840102,3.80714,2626.7,2626.1,3.80784]
[1723799840306,3.80708,2626.7,2626.2,0.55406396]
[1723799840475,3.80709,2626.7,2626.0,1.73279957]
[1723799840679,3.80743,2626.5,2626.0,1.73279957]
[1723799841874,3.80756,2626.4,2625.9,17.32783573]
[1723799842077,3.80764,2626.3,2625.9,13.51972573]
[1723799842308,3.80743,2626.5,2625.9,13.51972573]
[1723799842309,7.69102787,2626.5,2625.9,13.51972573]
[1723799842473,7.61489,2626.5,2625.9,15.6333753]
[1723799842679,3.8076,2626.4,2625.9,19.4415853]
[1723799842878,3.80764,2626.3,2625.9,15.6333753]
[1723799843085,2.3684,2626.3,2625.9,13.51972573]
[1723799843301,6.1761,2626.3,2625.9,13.51972573]
[1723799843504,3.80785,2626.2,2625.9,13.51972573]
[1723799843892,3.80785,2626.2,2625.8,13.51972573]
[1723799844280,3.80798,2626.1,2625.8,13.51972573]
[1723799844493,3.80809,2626.0,2625.7,13.51972573]
[1723799844693,6.17614,2626.3,2625.7,13.51972573]
[1723799844892,3.80787,2626.2,2625.7,13.51972573]
[1723799845335,6.17614,2626.3,2625.8,3.80824]
[1723799845608,6.17614,2626.3,2625.7,13.51972573]
[1723799845811,3.80779,2626.2,2625.7,13.51972573]
[1723799846009,3.80779,2626.2,2625.7,17.32815573]
[1723799846312,6.17614,2626.3,2625.7,13.51972573]
[1723799846313,3.80805,2626.1,2625.7,13.51972573]
[1723799846683,3.80846,2625.8,2625.1,17.32901573]
[1723799846898,3.80846,2625.8,2624.6,7.44]
[1723799846899,3.80896,2625.4,2624.8,3.80972]
[1723799847074,3.80896,2625.4,2624.6,9.8556]
[1723799847075,3.80924,2625.2,2624.9,0.380972]
[1723799847277,3.80971,2624.9,2624.4,3.8103]
[1723799847478,7.61946,2624.9,2624.5,0.38103]
[1723799847713,3.80982,2624.8,2624.5,0.38103]
[1723799847986,3.80982,2624.8,2624.2,7.62118]
[1723799847987,3.80971,2624.9,2624.4,3.81031]
[1723799848121,3.88586787,2624.9,2624.4,3.81031]
[1723799848326,7.69563787,2624.9,2624.4,3.81031]
[1723799848528,7.69563787,2624.9,2624.2,3.81061]
[1723799848529,3.88586787,2624.9,2624.2,3.81055]
[1723799848716,3.81004,2624.7,2624.2,1.359811]
[1723799849104,7.62013,2624.7,2624.0,6.15837]
[1723799849305,3.81004,2624.7,2624.0,3.81087]
[1723799849510,3.81004,2624.7,2624.1,0.381087]
[1723799849834,3.81012,2624.6,2624.1,0.381087]
[1723799850032,0.07615787,2624.6,2623.8,7.62233]
[1723799850268,3.80975,2624.9,2623.7,2.3475]
[1723799850395,3.80975,2624.9,2624.2,3.81055]
[1723799850602,3.80991,2624.8,2624.2,3.81055]
[1723799851153,3.80975,2624.9,2624.2,3.81055]
[1723799851294,3.80975,2624.9,2624.2,4.191605]
[1723799851503,3.8096,2625.0,2624.4,3.81027]
[1723799851759,7.98145,2625.1,2624.4,3.81027]
[1723799851902,8.63929808,2625.1,2624.4,3.81027]
[1723799852101,8.63929808,2625.1,2624.5,3.81017]
[1723799852297,3.80954,2625.0,2624.4,3.81027]
[1723799852619,3.80892,2625.5,2624.7,3.80995]
[1723799852981,2.3225,2625.6,2625.1,3.80937]
[1723799853162,3.80865,2625.6,2625.2,0.380937]
[1723799853303,7.61719,2625.7,2625.1,3.80929]
[1723799853509,3.80854,2625.7,2625.1,7.61858]
[1723799853749,9.93911,2625.9,2625.2,3.80922]
[1723799853948,3.80807,2626.0,2625.4,3.80884]
[1723799854108,7.61602,2626.1,2625.5,3.80879]
[1723799854309,7.61602,2626.1,2625.4,3.80884]
[1723799854310,7.61605,2626.1,2625.4,3.80884]
[1723799854511,3.80837,2625.8,2625.2,22.7946941]
[1723799854849,7.61627,2626.0,2625.3,3.80899]
[1723799855148,3.80808,2626.0,2625.4,0.79645851]
[1723799855358,3.80824,2625.9,2625.4,0.79645851]
[1723799855564,3.80808,2626.0,2625.4,4.60537851]
[1723799855865,3.80823,2625.9,2625.4,4.60537851]
[1723799856227,3.80808,2626.0,2625.4,8.41420851]
[1723799856458,3.80808,2626.0,2625.4,4.60528851]
[1723799856663,3.80808,2626.0,2625.4,8.41414851]
[1723799856979,3.80808,2626.0,2625.4,4.60528851]
[1723799857124,6.4297,2626.2,2625.4,0.79645851]
[1723799857329,6.4297,2626.2,2625.2,18.9855841]
[1723799857330,7.61632,2626.0,2625.3,3.80897]
[1723799857562,3.80812,2626.0,2625.4,1.55831651]
[1723799857740,3.80812,2626.0,2625.4,5.36711651]
[1723799858068,3.80872,2625.6,2625.2,13.51972573]
[1723799858454,3.80889,2625.5,2625.2,13.51972573]
[1723799858851,3.80889,2625.5,2625.0,17.32921573]
[1723799859054,3.80889,2625.5,2625.0,19.06442673]
[1723799859300,3.80925,2625.2,2625.0,13.51972573]
[1723799859472,3.80925,2625.2,2624.6,3.81001]
[1723799859473,3.80945,2625.1,2624.6,3.81001]
[1723799859774,3.80945,2625.1,2624.5,17.32995573]
[1723799859935,3.80945,2625.1,2624.5,20.0449293]
[1723799860131,6.28315,2625.2,2624.5,16.2346993]
[1723799860132,3.80954,2625.0,2624.5,16.2346993]
[1723799860644,6.28323,2625.2,2624.6,3.81002]
[1723799860852,6.28323,2625.2,2624.6,4.31008131]
[1723799861175,3.80904,2625.4,2624.7,6.15624]
[1723799861339,3.80909,2625.3,2624.7,6.15624]
[1723799861686,3.80941,2625.1,2624.6,4.31013131]
[1723799861853,4.607124,2625.4,2624.7,3.80988]
[1723799862055,7.61809,2625.4,2624.9,3.80964]
[1723799862268,7.61809,2625.4,2624.8,3.80972]
[1723799862566,3.80901,2625.4,2624.7,5.5927867]
[1723799862769,3.80901,2625.4,2624.8,0.93200687]
[1723799862973,7.61805,2625.4,2624.9,3.80965]
[1723799863185,3.80911,2625.3,2624.7,5.5927867]
[1723799863386,3.80911,2625.3,2624.7,3.80982]
[1723799863587,7.9809,2625.5,2625.0,3.80943]
[1723799863791,3.80894,2625.4,2624.8,3.80967]
[1723799863989,4.172,2625.5,2625.0,3.80951]
[1723799864162,4.172,2625.5,2625.1,3.8093]
[1723799864605,4.172,2625.5,2625.0,3.80944]
[1723799865102,6.23676,2625.8,2625.2,3.80921]
[1723799865457,3.80858,2625.7,2625.2,3.80921]
[1723799866777,3.80858,2625.7,2625.0,3.80944]
[1723799866981,5.230314,2625.7,2625.0,3.80944]
[1723799867318,3.80882,2625.5,2624.8,3.80968]
[1723799867466,3.8092,2625.3,2624.7,17.32960573]
[1723799867669,3.80939,2625.1,2624.7,17.32960573]
[1723799867905,3.80939,2625.1,2624.8,13.51972573]
[1723799869865,2.3357,2625.2,2624.8,13.51972573]
[1723799870197,6.14493,2625.2,2624.8,13.51972573]
[1723799870497,3.80939,2625.1,2624.8,13.51972573]
[1723799871577,3.80966,2624.9,2624.8,13.51972573]
[1723799872074,3.80964,2625.0,2624.8,13.51972573]
[1723799873178,7.61928,2625.0,2624.8,13.51972573]
[1723799873378,3.80964,2625.0,2624.8,13.51972573]
[1723799873921,7.61924,2625.0,2624.6,13.51972573]
[1723799874350,3.80967,2624.9,2624.6,13.51972573]
[1723799874773,3.8096,2625.0,2624.6,13.51972573]
[1723799874978,7.61922,2625.0,2624.6,13.51972573]
[1723799875304,3.80968,2624.9,2624.6,13.51972573]
[1723799876020,3.8096,2625.0,2624.6,13.51972573]
[1723799876387,7.61923,2625.0,2624.6,13.51972573]
[1723799877085,3.80968,2624.9,2624.6,13.51972573]
[1723799877781,3.80968,2624.9,2624.7,13.51972573]
[1723799878305,3.8096,2625.0,2624.7,13.51972573]
[1723799878514,6.14503,2625.2,2624.7,13.51972573]
[1723799878672,9.9544,2625.2,2624.7,13.51972573]
[1723799878880,3.80911,2625.3,2624.8,3.80971]
[1723799879079,3.80911,2625.3,2624.7,19.4435863]
[1723799879080,7.61831,2625.3,2624.7,19.4435863]
[1723799879429,3.80911,2625.3,2624.9,3.80966]
[1723799879715,3.80889,2625.5,2625.0,3.8095]
[1723799879874,3.80901,2625.4,2624.9,1.10104431]
[1723799880195,3.8091,2625.3,2624.8,3.80981]
[1723799880400,3.8091,2625.3,2624.8,7.61954]
[1723799880571,3.8091,2625.3,2624.8,3.80973]
[1723799881798,3.80938,2625.1,2624.7,13.51972573]
[1723799882721,3.80938,2625.1,2624.8,13.51972573]
[1723799884324,7.61885,2625.1,2624.8,13.51972573]
[1723799884527,3.80938,2625.1,2624.8,13.51972573]
[1723799886501,7.61886,2625.1,2624.8,13.51972573]
[1723799887299,3.80959,2625.0,2624.8,13.51972573]
[1723799888096,3.80966,2624.9,2624.8,13.51972573]
[1723799888298,2.3809,2625.1,2624.8,13.51972573]
[1723799888493,2.3809,2625.1,2624.6,3.81007]
[1723799888494,3.80938,2625.1,2624.9,1.35197257]
[1723799888731,3.80938,2625.1,2624.7,3.80994]
[1723799888932,6.94417,2625.3,2624.8,3.8098]
[1723799889242,3.8089,2625.5,2625.0,3.80951]
[1723799889546,3.80895,2625.4,2625.0,3.80951]
[1723799889697,3.80895,2625.4,2624.8,6.19457]
[1723799889898,3.80895,2625.4,2624.9,0.61947]
[1723799890095,3.80895,2625.4,2624.9,4.42913]
[1723799890300,7.61782,2625.5,2624.9,4.42913]
[1723799890605,3.8089,2625.5,2625.0,4.87186]
[1723799890935,3.80865,2625.6,2625.1,3.80937]
[1723799891136,3.80865,2625.6,2625.2,1.53319488]
[1723799891631,3.135,2625.9,2625.3,3.809]
[1723799891848,3.135,2625.9,2625.2,15.05292061]
[1723799891849,6.94329,2625.9,2625.4,17.32862573]
[1723799891996,6.94329,2625.9,2625.5,0.61947]
[1723799892202,3.80838,2625.8,2625.5,0.61947]
[1723799892703,3.135,2625.9,2625.5,0.61947]
[1723799893333,6.94329,2625.9,2625.5,0.61947]
[1723799893534,3.80837,2625.8,2625.4,13.51972573]
[1723799894237,2.3774,2625.7,2625.4,13.51972573]
[1723799894413,3.80879,2625.5,2625.4,13.51972573]
[1723799894613,3.135,2625.6,2625.4,13.51972573]
[1723799895342,3.80879,2625.5,2625.4,13.51972573]
[1723799895506,7.61758,2625.5,2625.4,13.51972573]
[1723799897535,7.61758,2625.5,2624.8,12.18]
[1723799897536,3.80912,2625.3,2624.8,13.51972573]
[1723799898128,3.80912,2625.3,2624.8,17.32953573]
[1723799898635,3.80912,2625.3,2624.8,13.51972573]
[1723799898938,9.790732,2625.3,2624.8,13.51972573]
[1723799899142,3.8099,2624.8,2624.6,13.51972573]
[1723799899929,3.81017,2624.6,2623.9,3.81101]
[1723799900129,3.135,2624.5,2623.7,6.22361]
[1723799900328,3.81063,2624.3,2623.7,6.22361]
[1723799900637,3.81063,2624.3,2623.7,10.03493]
[1723799900842,3.81063,2624.3,2623.8,3.81123]
[1723799901730,3.81063,2624.3,2623.7,6.22361]
[1723799901934,3.81077,2624.2,2623.7,3.81131]
[1723799902115,3.81084,2624.1,2623.5,3.81156]
[1723799903908,6.28282,2624.3,2623.6,3.81147]
[1723799904112,6.28282,2624.3,2623.7,3.81133]
[1723799904459,6.28282,2624.3,2623.8,3.81126]
[1723799905435,3.81032,2624.5,2623.9,7.62202]
[1723799905757,3.81041,2624.4,2623.9,3.81099]
[1723799906352,3.81041,2624.4,2623.9,17.33071573]
[1723799906550,3.81041,2624.4,2623.9,13.51972573]
[1723799906725,3.81054,2624.3,2623.9,13.51972573]
[1723799907717,3.81083,2624.1,2623.9,13.51972573]
[1723799907916,3.81069,2624.2,2623.9,13.51972573]
[1723799908538,3.81054,2624.3,2623.9,13.51972573]
[1723799908539,3.81083,2624.1,2623.9,13.51972573]
[1723799908739,6.17993,2624.1,2623.9,13.51972573]
[1723799909192,9.99086,2624.1,2623.7,13.51972573]
[1723799909380,6.17993,2624.1,2623.7,13.51972573]
[1723799909582,3.81083,2624.1,2623.7,15.9968583]
[1723799909887,3.81069,2624.2,2623.7,19.8082583]
[1723799910277,3.81069,2624.2,2623.8,0.73790231]
[1723799910477,3.81062,2624.3,2623.7,3.81132]
[1723799910678,3.88686787,2624.2,2623.5,3.81159]
[1723799910863,3.81098,2624.0,2623.5,3.81159]
[1723799911065,3.81071,2624.2,2623.7,3.81138]
[1723799911450,7.62153,2624.2,2623.7,3.81133]
[1723799911654,3.81071,2624.2,2623.6,3.81146]
[1723799911981,3.81054,2624.3,2623.6,4.4600008]
[1723799912155,3.81054,2624.3,2623.8,3.81118]
[1723799912949,7.62116,2624.3,2623.8,3.81118]
[1723799913376,3.81054,2624.3,2623.8,3.81118]
[1723799914801,3.80968,2624.9,2624.3,3.8104]
[1723799914971,3.80982,2624.8,2624.2,3.8106]
[1723799915145,3.81025,2624.5,2624.0,3.81088]
[1723799915342,3.81025,2624.5,2624.0,4.437489]
[1723799916012,3.81025,2624.5,2624.0,8.248389]
[1723799916213,2.3194,2624.6,2624.2,3.81062]
[1723799916816,2.3194,2624.6,2624.1,3.81073]
[1723799917010,6.12952,2624.6,2624.1,3.81073]
[1723799917212,2.3194,2624.6,2624.1,3.81078]
[1723799917414,2.3194,2624.6,2624.2,3.81065]
[1723799917910,6.1295,2624.6,2624.1,0.762175]
[1723799918116,6.1295,2624.6,2624.1,4.572975]
[1723799918310,6.1295,2624.6,2624.1,18.09270073]
[1723799918504,2.3194,2624.6,2624.2,5.99854188]
[1723799919294,2.3194,2624.6,2624.2,2.18786188]
[1723799919612,2.3194,2624.6,2624.1,17.33044573]
[1723799919815,6.12951,2624.6,2624.1,17.33044573]
[1723799921107,2.3194,2624.6,2624.2,3.81067]
[1723799921421,6.12952,2624.6,2624.2,2.11412357]
[1723799921593,6.12952,2624.6,2624.1,13.51972573]
[1723799922114,6.12952,2624.6,2624.1,17.33051573]
[1723799922291,2.3194,2624.6,2624.2,3.81067]
[1723799922889,6.12953,2624.6,2624.1,13.51972573]
[1723799923087,6.12953,2624.6,2624.1,17.33054573]
[1723799924040,2.3536,2624.2,2624.1,13.51972573]
[1723799924240,6.16428,2624.2,2624.1,19.97]
[1723799926235,9.97496,2624.2,2624.1,19.97]
[1723799927344,3.81096,2624.1,2623.6,3.81154]
[1723799928045,3.81098,2624.0,2623.6,2.75933]
[1723799928247,3.81098,2624.0,2623.5,3.81169]
[1723799928447,3.81098,2624.0,2623.5,23.78169]
[1723799928753,3.81112,2623.9,2623.5,19.97]
[1723799929316,3.81112,2623.9,2623.4,3.81176]
[1723799929837,6.14561,2623.7,2623.2,3.81204]
[1723799930037,6.94756,2623.6,2623.2,3.81204]
[1723799930238,6.94756,2623.6,2623.0,3.81228]
[1723799930239,7.02371787,2623.6,2623.0,3.81228]
[1723799930447,7.95950966,2623.6,2623.0,3.81228]
[1723799930858,7.95950966,2623.6,2622.9,3.81253]
[1723799930859,3.81192,2623.4,2622.9,3.81253]
[1723799931020,7.62362,2623.5,2622.9,3.81247]
[1723799931220,3.81063,2624.3,2623.7,3.81127]
[1723799931449,3.81043,2624.4,2623.8,4.192377]
[1723799931636,7.62092,2624.4,2623.8,3.81125]
[1723799931939,3.81043,2624.4,2623.8,3.81125]
[1723799932257,7.62092,2624.4,2623.8,3.81125]
[1723799932432,3.81043,2624.4,2623.8,3.81117]
[1723799932631,2.3313,2624.5,2624.0,3.81089]
[1723799933738,2.3313,2624.5,2624.0,7.62178]
[1723799933950,2.3313,2624.5,2624.0,3.81089]
[1723799934150,2.3313,2624.5,2624.0,8.002859]
[1723799934347,3.136,2624.7,2624.0,4.191969]
[1723799934348,5.5523,2624.7,2624.0,4.191969]
[1723799934576,5.5523,2624.7,2624.2,3.81059]
[1723799934959,9.36229,2624.7,2624.2,3.81059]
[1723799935159,3.136,2624.7,2624.2,4.8431669]
[1723799935360,3.8099,2624.8,2624.2,4.8431669]
[1723799935523,3.8099,2624.8,2624.2,4.8431569]
[1723799935859,3.8099,2624.8,2624.2,8.6537569]
[1723799936061,3.80969,2624.9,2624.3,4.68351643]
[1723799936253,3.136,2624.9,2624.4,3.81038]
[1723799936735,3.136,2624.9,2624.4,4.65969564]
[1723799936938,2.93369499,2624.9,2624.6,3.8101]
[1723799938691,2.93369499,2624.9,2624.4,7.62055]
[1723799938986,2.93369499,2624.9,2624.5,0.84935464]
[1723799939368,2.93369499,2624.9,2624.5,4.65959464]
[1723799940270,2.93369499,2624.9,2624.3,0.87299643]
[1723799940581,3.81025,2624.5,2624.1,19.43]
[1723799940787,5.436,2624.6,2624.1,19.43]
[1723799940988,3.81025,2624.5,2624.1,21.373]
[1723799941550,5.436,2624.6,2624.1,21.373]
[1723799941750,5.436,2624.6,2624.1,25.18381]
[1723799941959,3.80985,2624.8,2624.3,3.81053]
[1723799942651,3.80996,2624.7,2624.3,3.81053]
[1723799942852,3.80996,2624.7,2624.2,23.89424188]
[1723799943585,3.81012,2624.6,2624.2,19.43]
[1723799943957,3.81033,2624.5,2624.2,19.43]
[1723799944493,6.16052,2624.6,2624.2,19.43]
[1723799945084,3.81026,2624.5,2624.2,19.43]
[1723799945289,6.16052,2624.6,2624.2,19.43]
[1723799945664,3.81012,2624.6,2624.2,19.43]
[1723799945871,3.80989,2624.8,2624.3,3.81045]
[1723799946074,3.80989,2624.8,2624.4,3.81039]
[1723799946276,3.80989,2624.8,2624.2,25.945699]
[1723799946481,3.80989,2624.8,2624.3,3.81046]
[1723799946974,3.80989,2624.8,2624.3,6.21606]
[1723799947763,3.81013,2624.6,2624.2,19.43]
[1723799947969,3.81041,2624.4,2624.2,19.43]
[1723799948482,3.81041,2624.4,2623.9,3.81105]
[1723799948483,3.81041,2624.4,2623.9,23.24105]
[1723799948789,3.81041,2624.4,2623.9,27.05209]
[1723799948996,3.81041,2624.4,2623.9,23.24104]
[1723799949881,3.80991,2624.8,2624.2,3.81058]
[1723799950055,3.80991,2624.8,2624.3,3.81046]
[1723799950389,3.80991,2624.8,2624.0,2.4056]
[1723799950390,3.136,2624.6,2624.0,3.81086]
[1723799950594,2.4394,2624.5,2624.0,3.81086]
[1723799950777,3.8104,2624.4,2624.0,3.81086]
[1723799951088,6.24973,2624.5,2624.0,3.81086]
[1723799952568,3.81041,2624.4,2624.0,3.81086]
[1723799953297,6.24965,2624.5,2624.0,3.81086]
[1723799953824,3.81041,2624.4,2623.9,3.8111]
[1723799954320,6.24966,2624.5,2624.0,3.81095]
[1723799954518,6.94624,2624.6,2624.0,3.81095]
[1723799954723,6.94624,2624.6,2624.1,3.81073]
[1723799956106,3.136,2624.6,2624.3,3.81046]
[1723799956316,3.80984,2624.8,2624.4,0.381046]
[1723799956642,3.80989,2624.8,2624.3,3.81041]
[1723799956827,5.120735,2624.8,2624.3,3.81041]
[1723799957518,5.120735,2624.8,2624.2,19.43]
[1723799957519,3.81012,2624.6,2624.2,19.43]
[1723799958226,3.136,2624.6,2624.2,23.2406]
[1723799958805,3.80989,2624.8,2624.3,3.81053]
[1723799959491,3.136,2624.9,2624.5,3.81024]
[1723799959691,3.136,2624.9,2624.3,3.81053]
[1723799959692,6.94567,2624.9,2624.3,3.81039]
[1723799959891,6.94567,2624.9,2624.3,6.515501]
[1723799960613,5.4866,2625.2,2624.7,3.80985]
[1723799960934,5.4866,2625.2,2624.4,2.4172]
[1723799960935,3.136,2625.2,2624.8,3.80978]
[1723799961437,6.94523,2625.2,2624.8,3.80978]
[1723799961733,3.136,2625.2,2624.9,3.80966]
[1723799962436,3.136,2625.2,2624.8,7.61951]
[1723799962636,3.136,2625.2,2624.8,3.80973]
[1723799963015,9.29553,2625.5,2624.9,3.80966]
[1723799963323,5.4866,2625.5,2624.8,4.190703]
[1723799963530,3.136,2625.2,2624.8,3.80973]
[1723799965150,3.136,2624.9,2624.6,19.43]
[1723799965442,3.136,2624.9,2624.5,23.2402]
[1723799966112,6.94579,2624.9,2624.5,19.43]
[1723799966312,2.3542,2625.1,2624.5,23.24014]
[1723799966514,2.3542,2625.1,2624.6,3.81001]
[1723799966718,6.16358,2625.1,2624.6,3.81001]
[1723799966940,3.136,2625.2,2624.8,3.8097]
[1723799967307,3.136,2625.2,2624.7,6.28486]
[1723799967706,6.94524,2625.2,2624.7,6.28486]
[1723799967910,6.94524,2625.2,2624.5,23.24011]
[1723799967911,3.80941,2625.1,2624.5,23.24011]
[1723799968111,3.80941,2625.1,2624.6,3.81002]